fUSD/lending_fUSD_20250105
["ID","MTS","AMOUNT","RATE_DAILY","PERIOD"]
[347706146,1736075437226,-500.0,8.219e-05,2]
[347706147,1736075437236,-500.0,8.219e-05,2]
[347706148,1736075437247,-1330.17,8.219e-05,2]
[347706149,1736075437258,-518.76,8.219e-05,2]
[347706150,1736075437272,-500.0,8.219e-05,2]
[347706151,1736075437284,-717.54,8.219e-05,2]
[347706152,1736075437297,-511.12,8.219e-05,2]
[347706153,1736075437310,-500.0,8.219e-05,2]
[347706154,1736075437322,-500.0,8.219e-05,2]
[347706155,1736075437334,-1115.76,8.219e-05,2]
[347706156,1736075437345,-500.0,8.219e-05,2]
[347706157,1736075437356,-596.31,8.219e-05,2]
[347706158,1736075437368,-500.0,8.219e-05,2]
[347706159,1736075437380,-500.0,8.219e-05,2]
[347706160,1736075437392,-500.0,8.219e-05,2]
[347706161,1736075437404,-500.0,8.219e-05,2]
[347706162,1736075437417,-500.0,8.219e-05,2]
[347706163,1736075437430,-668.71,8.219e-05,2]
[347706164,1736075437442,-500.0,8.219e-05,2]
[347706165,1736075437454,-500.0,8.219e-05,2]
[347706166,1736075437465,-500.0,8.219e-05,2]
[347706167,1736075437476,-500.0,8.219e-05,2]
[347706168,1736075437485,-698.2,8.219e-05,2]
[347706169,1736075437496,-500.0,8.219e-05,2]
[347706170,1736075437508,-500.0,8.219e-05,2]
[347706171,1736075437519,-1901.5,8.219e-05,2]
[347706172,1736075437532,-500.0,8.219e-05,2]
[347706173,1736075437545,-500.0,8.219e-05,2]
[347706174,1736075437556,-500.0,8.219e-05,2]
[347706175,1736075437568,-848.98,8.219e-05,2]
[347706176,1736075437580,-502.71517553,8.219e-05,2]
[347706177,1736075437593,-500.0,8.219e-05,2]
[347706178,1736075437605,-1000.0,8.219e-05,2]
[347706180,1736075437618,-500.0,8.219e-05,2]
[347706181,1736075437630,-500.0,8.219e-05,2]
[347706182,1736075437641,-500.0,8.219e-05,2]
[347706184,1736075437654,-1021.3,8.219e-05,2]
[347706186,1736075437666,-1036.77,8.219e-05,2]
[347706188,1736075437678,-760.12,8.219e-05,2]
[347706189,1736075437690,-500.0,8.219e-05,2]
[347706190,1736075437701,-500.0,8.219e-05,2]
[347706191,1736075437713,-500.0,8.219e-05,2]
[347706192,1736075437724,-500.0,8.219e-05,2]
[347706193,1736075437736,-500.0,8.219e-05,2]
[347706194,1736075437748,-549.55,8.219e-05,2]
[347706195,1736075437760,-500.0,8.219e-05,2]
[347706196,1736075437772,-500.0,8.219e-05,2]
[347706197,1736075437783,-289.61347292,8.219e-05,2]
[347706198,1736075437795,-1310.52,8.219e-05,2]
[347706199,1736075437806,-1080.88,8.219e-05,2]
[347706200,1736075437816,-799.48,8.219e-05,2]
[347706201,1736075437826,-500.0,8.219e-05,2]
[347706202,1736075437838,-601.42,8.219e-05,2]
[347706203,1736075437848,-500.0,8.219e-05,2]
[347706204,1736075437860,-500.0,8.219e-05,2]
[347706205,1736075437874,-500.0,8.219e-05,2]
[347706206,1736075437886,-659.82,8.219e-05,2]
[347706207,1736075437896,-500.0,8.219e-05,2]
[347706208,1736075437906,-500.0,8.219e-05,2]
[347706209,1736075437919,-791.23,8.219e-05,2]
[347706210,1736075437929,-500.0,8.219e-05,2]
[347706211,1736075437940,-500.0,8.219e-05,2]
[347706212,1736075437951,-500.0,8.219e-05,2]
[347706213,1736075437963,-500.0,8.219e-05,2]
[347706214,1736075437976,-500.0,8.219e-05,2]
[347706215,1736075437988,-500.0,8.219e-05,2]
[347706217,1736075437998,-500.0,8.219e-05,2]
[347706219,1736075438009,-500.0,8.219e-05,2]
[347706221,1736075438019,-500.0,8.219e-05,2]
[347706223,1736075438029,-500.0,8.219e-05,2]
[347706225,1736075438040,-500.0,8.219e-05,2]
[347706227,1736075438050,-500.0,8.219e-05,2]
[347706229,1736075438060,-500.0,8.219e-05,2]
[347706231,1736075438072,-500.0,8.219e-05,2]
[347706233,1736075438082,-631.89,8.219e-05,2]
[347706235,1736075438094,-500.0,8.219e-05,2]
[347706238,1736075438110,-500.0,8.219e-05,2]
[347706240,1736075438121,-500.0,8.219e-05,2]
[347706242,1736075438132,-1463.59,8.219e-05,2]
[347706244,1736075438143,-500.0,8.219e-05,2]
[347706246,1736075438154,-500.0,8.219e-05,2]
[347706249,1736075438165,-1066.81,8.219e-05,2]
[347706251,1736075438176,-500.0,8.219e-05,2]
[347706253,1736075438186,-859.26,8.219e-05,2]
[347706255,1736075438197,-507.5646598,8.219e-05,2]
[347706257,1736075438208,-500.0,8.219e-05,2]
[347706259,1736075438218,-2537.32,8.219e-05,2]
[347706261,1736075438229,-500.0,8.219e-05,2]
[347706264,1736075438241,-500.0,8.219e-05,2]
[347706266,1736075438251,-3797.5,8.219e-05,2]
[347706268,1736075438262,-500.0,8.219e-05,2]
[347706270,1736075438273,-500.0,8.219e-05,2]
[347706272,1736075438283,-500.0,8.219e-05,2]
[347706274,1736075438296,-842.18,8.219e-05,2]
[347706276,1736075438307,-500.0,8.219e-05,2]
[347706278,1736075438318,-500.0,8.219e-05,2]
[347706280,1736075438329,-459.073056,8.219e-05,2]
[347706282,1736075438341,-500.0,8.219e-05,2]
[347706284,1736075438352,-2706.32,8.219e-05,2]
[347706287,1736075438362,-500.0,8.219e-05,2]
[347706289,1736075438374,-500.0,8.219e-05,2]
[347706291,1736075438385,-500.0,8.219e-05,2]
[347706293,1736075438396,-500.0,8.219e-05,2]
[347706295,1736075438407,-500.0,8.219e-05,2]
[347706297,1736075438417,-500.0,8.219e-05,2]
[347706299,1736075438428,-1631.31,8.219e-05,2]
[347706301,1736075438438,-1225.47,8.219e-05,2]
[347706303,1736075438449,-500.0,8.219e-05,2]
[347706306,1736075438459,-608.94,8.219e-05,2]
[347706308,1736075438470,-500.0,8.219e-05,2]
[347706310,1736075438481,-500.0,8.219e-05,2]
[347706312,1736075438491,-1705.87,8.219e-05,2]
[347706314,1736075438502,-500.0,8.219e-05,2]
[347706316,1736075438512,-5493.38,8.219e-05,2]
[347706318,1736075438523,-874.45,8.219e-05,2]
[347706320,1736075438534,-500.0,8.219e-05,2]
[347706322,1736075438545,-500.0,8.219e-05,2]
[347706325,1736075438554,-1182.05,8.219e-05,2]
[347706327,1736075438565,-500.0,8.219e-05,2]
[347706329,1736075438576,-500.0,8.219e-05,2]
[347706331,1736075438587,-1109.76,8.219e-05,2]
[347706333,1736075438598,-382.39,8.219e-05,2]
[347706335,1736075438609,-1220.78,8.219e-05,2]
[347706338,1736075438619,-500.0,8.219e-05,2]
[347706340,1736075438630,-500.0,8.219e-05,2]
[347706342,1736075438641,-4187.8,8.219e-05,2]
[347706344,1736075438652,-500.0,8.219e-05,2]
[347706346,1736075438663,-500.0,8.219e-05,2]
[347706348,1736075438673,-500.0,8.219e-05,2]
[347706350,1736075438683,-1336.67,8.219e-05,2]
[347706352,1736075438693,-1222.53,8.219e-05,2]
[347706355,1736075438704,-500.0,8.219e-05,2]
[347706357,1736075438715,-538.55,8.219e-05,2]
[347706359,1736075438725,-4833.3,8.219e-05,2]
[347706361,1736075438736,-500.0,8.219e-05,2]
[347706363,1736075438747,-2625.82,8.219e-05,2]
[347706365,1736075438757,-500.0,8.219e-05,2]
[347706367,1736075438768,-500.0,8.219e-05,2]
[347706370,1736075438779,-500.0,8.219e-05,2]
[347706372,1736075438790,-1221.21,8.219e-05,2]
[347706374,1736075438800,-500.0,8.219e-05,2]
[347706376,1736075438811,-16703.0,8.219e-05,2]
[347706378,1736075438822,-500.0,8.219e-05,2]
[347706379,1736075438833,-500.0,8.219e-05,2]
[347706380,1736075438845,-759.57,8.219e-05,2]
[347706381,1736075438857,-500.0,8.219e-05,2]
[347706382,1736075438868,-500.0,8.219e-05,2]
[347706383,1736075438879,-500.0,8.219e-05,2]
[347706384,1736075438889,-746.72,8.219e-05,2]
[347706385,1736075438899,-500.0,8.219e-05,2]
[347706386,1736075438910,-500.0,8.219e-05,2]
[347706387,1736075438925,-500.0,8.219e-05,2]
[347706388,1736075438935,-504.27,8.219e-05,2]
[347706389,1736075438946,-500.0,8.219e-05,2]
[347706390,1736075438957,-500.0,8.219e-05,2]
[347706391,1736075438968,-500.0,8.219e-05,2]
[347706392,1736075438980,-500.0,8.219e-05,2]
[347706393,1736075438991,-500.0,8.219e-05,2]
[347706394,1736075439003,-500.0,8.219e-05,2]
[347706395,1736075439014,-500.0,8.219e-05,2]
[347706396,1736075439026,-977.35,8.219e-05,2]
[347706397,1736075439037,-1573.44,8.219e-05,2]
[347706398,1736075439047,-2999.25,8.219e-05,2]
[347706399,1736075439059,-500.0,8.219e-05,2]
[347706400,1736075439070,-1786.98,8.219e-05,2]
[347706401,1736075439082,-500.0,8.219e-05,2]
[347706402,1736075439093,-500.0,8.219e-05,2]
[347706403,1736075439104,-500.0,8.219e-05,2]
[347706404,1736075439115,-500.0,8.219e-05,2]
[347706405,1736075439127,-591.73,8.219e-05,2]
[347706406,1736075439138,-1743.16,8.219e-05,2]
[347706407,1736075439150,-1632.06,8.219e-05,2]
[347706408,1736075439160,-500.0,8.219e-05,2]
[347706409,1736075439171,-500.0,8.219e-05,2]
[347706410,1736075439182,-500.0,8.219e-05,2]
[347706411,1736075439193,-500.0,8.219e-05,2]
[347706412,1736075439204,-500.0,8.219e-05,2]
[347706413,1736075439215,-3432.06,8.219e-05,2]
[347706414,1736075439227,-607.29,8.219e-05,2]
[347706415,1736075439238,-500.0,8.219e-05,2]
[347706416,1736075439249,-3750.91,8.219e-05,2]
[347706417,1736075439259,-500.0,8.219e-05,2]
[347706418,1736075439270,-5147.88,8.219e-05,2]
[347706419,1736075439282,-500.0,8.219e-05,2]
[347706420,1736075439293,-1517.82,8.219e-05,2]
[347706421,1736075439304,-500.0,8.219e-05,2]
[347706422,1736075439315,-500.0,8.219e-05,2]
[347706423,1736075439326,-500.0,8.219e-05,2]
[347706424,1736075439337,-2811.18,8.219e-05,2]
[347706425,1736075439348,-500.0,8.219e-05,2]
[347706426,1736075439359,-500.0,8.219e-05,2]
[347706427,1736075439370,-500.0,8.219e-05,2]
[347706428,1736075439380,-500.0,8.219e-05,2]
[347706429,1736075439391,-500.0,8.219e-05,2]
[347706430,1736075439402,-578.29,8.219e-05,2]
[347706431,1736075439413,-500.0,8.219e-05,2]
[347706432,1736075439423,-1195.44,8.219e-05,2]
[347706433,1736075439434,-500.0,8.219e-05,2]
[347706434,1736075439446,-957.75,8.219e-05,2]
[347706435,1736075439457,-500.0,8.219e-05,2]
[347706436,1736075439468,-500.0,8.219e-05,2]
[347706437,1736075439478,-6804.7,8.219e-05,2]
[347706438,1736075439490,-500.0,8.219e-05,2]
[347706439,1736075439500,-1221.83,8.219e-05,2]
[347706440,1736075439511,-978.5,8.219e-05,2]
[347706441,1736075439522,-500.0,8.219e-05,2]
[347706442,1736075439532,-765.61,8.219e-05,2]
[347706443,1736075439543,-1890.28,8.219e-05,2]
[347706444,1736075439554,-557.85,8.219e-05,2]
[347706445,1736075439564,-3557.28,8.219e-05,2]
[347706447,1736075439575,-500.0,8.219e-05,2]
[347706448,1736075439586,-4500.76,8.219e-05,2]
[347706449,1736075439596,-517.06,8.219e-05,2]
[347706450,1736075439612,-500.0,8.219e-05,2]
[347706451,1736075439623,-1372.55,8.219e-05,2]
[347706453,1736075439636,-500.0,8.219e-05,2]
[347706454,1736075439647,-500.0,8.219e-05,2]
[347706455,1736075439659,-500.0,8.219e-05,2]
[347706456,1736075439670,-500.0,8.219e-05,2]
[347706457,1736075439681,-500.0,8.219e-05,2]
[347706458,1736075439693,-3847.0,8.219e-05,2]
[347706459,1736075439705,-10925.69,8.219e-05,2]
[347706460,1736075439716,-500.0,8.219e-05,2]
[347706461,1736075439728,-500.0,8.219e-05,2]
[347706462,1736075439739,-622.59,8.219e-05,2]
[347706463,1736075439751,-500.0,8.219e-05,2]
[347706464,1736075439763,-1256.64,8.219e-05,2]
[347706465,1736075439773,-500.0,8.219e-05,2]
[347706466,1736075439784,-2647.61,8.219e-05,2]
[347706467,1736075439795,-500.0,8.219e-05,2]
[347706468,1736075439806,-500.0,8.219e-05,2]
[347706469,1736075439817,-4517.35,8.219e-05,2]
[347706470,1736075439828,-3848.86,8.219e-05,2]
[347706471,1736075439840,-2197.24,8.219e-05,2]
[347706472,1736075439851,-500.0,8.219e-05,2]
[347706473,1736075439863,-634.58,8.219e-05,2]
[347706474,1736075439873,-500.0,8.219e-05,2]
[347706475,1736075439884,-3202.72,8.219e-05,2]
[347706476,1736075439896,-500.0,8.219e-05,2]
[347706477,1736075439907,-339.57471854,8.219e-05,2]
[347706478,1736075439922,-500.0,8.219e-05,2]
[347706479,1736075439933,-500.0,8.219e-05,2]
[347706480,1736075439945,-10645.45,8.219e-05,2]
[347706481,1736075439955,-607.95,8.219e-05,2]
[347706482,1736075439966,-500.0,8.219e-05,2]
[347706483,1736075439977,-500.0,8.219e-05,2]
[347706484,1736075439988,-500.0,8.219e-05,2]
[347706485,1736075439999,-500.0,8.219e-05,2]
[347706486,1736075440010,-546.65,8.219e-05,2]
[347706487,1736075440020,-500.0,8.219e-05,2]
[347706488,1736075440031,-500.0,8.219e-05,2]
[347706489,1736075440042,-500.0,8.219e-05,2]
[347706490,1736075440052,-500.0,8.219e-05,2]
[347706491,1736075440063,-1504.36,8.219e-05,2]
[347706492,1736075440074,-500.0,8.219e-05,2]
[347706493,1736075440086,-500.0,8.219e-05,2]
[347706494,1736075440096,-4985.15,8.219e-05,2]
[347706495,1736075440107,-500.0,8.219e-05,2]
[347706496,1736075440118,-831.54,8.219e-05,2]
[347706497,1736075440129,-12361.92,8.219e-05,2]
[347706498,1736075440140,-500.0,8.219e-05,2]
[347706499,1736075440151,-2299.53,8.219e-05,2]
[347706500,1736075440162,-500.0,8.219e-05,2]
[347706501,1736075440173,-2504.01,8.219e-05,2]
[347706502,1736075440183,-500.0,8.219e-05,2]
[347706503,1736075440194,-2244.45,8.219e-05,2]
[347706505,1736075440205,-640.05,8.219e-05,2]
[347706507,1736075440215,-500.0,8.219e-05,2]
[347706508,1736075440226,-1158.2,8.219e-05,2]
[347706509,1736075440236,-4817.0,8.219e-05,2]
[347706511,1736075440247,-500.0,8.219e-05,2]
[347706512,1736075440257,-500.0,8.219e-05,2]
[347706513,1736075440268,-500.0,8.219e-05,2]
[347706515,1736075440279,-562.52,8.219e-05,2]
[347706516,1736075440289,-2519.57,8.219e-05,2]
[347706517,1736075440299,-3703.99,8.219e-05,2]
[347706519,1736075440310,-500.0,8.219e-05,2]
[347706521,1736075440321,-2216.83,8.219e-05,2]
[347706523,1736075440331,-2445.62,8.219e-05,2]
[347706525,1736075440344,-712.05,8.219e-05,2]
[347706527,1736075440355,-500.0,8.219e-05,2]
[347706529,1736075440365,-500.0,8.219e-05,2]
[347706532,1736075440376,-1466.35,8.219e-05,2]
[347706534,1736075440387,-500.0,8.219e-05,2]
[347706536,1736075440397,-500.0,8.219e-05,2]
[347706538,1736075440408,-500.0,8.219e-05,2]
[347706540,1736075440419,-2840.69,8.219e-05,2]
[347706542,1736075440430,-500.0,8.219e-05,2]
[347706544,1736075440440,-755.03,8.219e-05,2]
[347706546,1736075440451,-500.0,8.219e-05,2]
[347706548,1736075440462,-841.37,8.219e-05,2]
[347706550,1736075440472,-621.23,8.219e-05,2]
[347706598,1736075440893,-500.0,8.219e-05,2]
[347706602,1736075440968,-566.39,8.219e-05,2]
[347706605,1736075440988,-500.0,8.219e-05,2]
[347706608,1736075441009,-500.0,8.219e-05,2]
[347706610,1736075441018,-500.0,8.219e-05,2]
[347706612,1736075441028,-500.0,8.219e-05,2]
[347706614,1736075441037,-1570.17,8.219e-05,2]
[347706616,1736075441046,-2275.41,8.219e-05,2]
[347706618,1736075441055,-500.0,8.219e-05,2]
[347706620,1736075441065,-500.0,8.219e-05,2]
[347706622,1736075441074,-500.0,8.219e-05,2]
[347706624,1736075441083,-500.0,8.219e-05,2]
[347706626,1736075441093,-500.0,8.219e-05,2]
[347706628,1736075441101,-500.0,8.219e-05,2]
[347706630,1736075441111,-3548.81,8.219e-05,2]
[347706632,1736075441120,-659.33,8.219e-05,2]
[347706634,1736075441129,-938.48,8.219e-05,2]
[347706636,1736075441139,-1000.0,8.219e-05,2]
[347706638,1736075441149,-982.75,8.219e-05,2]
[347706640,1736075441159,-250.0,8.219e-05,2]
[347706642,1736075441168,-150.0,8.285e-05,2]
[347706644,1736075441177,-163.4,8.287e-05,2]
[347706646,1736075441187,-692.12,8.301e-05,2]
[347706648,1736075441196,-771.75,8.301e-05,2]
[347706650,1736075441205,-875.22,8.301e-05,2]
[347706652,1736075441215,-41218.75321,8.492e-05,2]
[347706654,1736075441224,-466.32891,8.492e-05,2]
[347706656,1736075441234,-327.197594,8.492e-05,2]
[347706658,1736075441244,-4478.17,8.492e-05,2]
[347706660,1736075441253,-24663.692001,8.492e-05,2]
[347706662,1736075441263,-1330.32,8.492e-05,2]
[347706664,1736075441272,-1112.3,8.492e-05,2]
[347706666,1736075441282,-1218.56,8.492e-05,2]
[347706668,1736075441291,-500.0,8.492e-05,2]
[347706669,1736075441301,-500.0,8.492e-05,2]
[347706671,1736075441310,-6143.06,8.492e-05,2]
[347706674,1736075441320,-2085.09,8.492e-05,2]
[347706676,1736075441330,-819.29,8.492e-05,2]
[347706678,1736075441340,-875.05,8.492e-05,2]
[347706680,1736075441351,-969.61,8.492e-05,2]
[347706681,1736075441360,-500.0,8.492e-05,2]
[347706684,1736075441370,-1077.75,8.492e-05,2]
[347706686,1736075441380,-2537.99,8.492e-05,2]
[347706688,1736075441390,-1610.27,8.492e-05,2]
[347706690,1736075441401,-1701.28,8.492e-05,2]
[347706692,1736075441411,-3505.39,8.492e-05,2]
[347706694,1736075441422,-2041.32,8.492e-05,2]
[347706696,1736075441433,-500.0,8.493e-05,2]
[347706698,1736075441443,-1277.53,8.493e-05,2]
[347706700,1736075441452,-1116.73,8.493e-05,2]
[347706701,1736075441462,-216.89,8.493e-05,2]
[347706704,1736075441472,-1377.86,8.493e-05,2]
[347706706,1736075441482,-500.0,8.493e-05,2]
[347706708,1736075441491,-500.0,8.493e-05,2]
[347706709,1736075441500,-500.0,8.493e-05,2]
[347706712,1736075441511,-500.0,8.493e-05,2]
[347706714,1736075441520,-500.0,8.493e-05,2]
[347706716,1736075441530,-500.0,8.493e-05,2]
[347706717,1736075441539,-500.0,8.493e-05,2]
[347706720,1736075441548,-1875.07,8.493e-05,2]
[347706721,1736075441557,-490.88,8.493e-05,2]
[347706724,1736075441567,-1919.72,8.493e-05,2]
[347706726,1736075441577,-500.0,8.493e-05,2]
[347706728,1736075441586,-529.93,8.493e-05,2]
[347706730,1736075441595,-500.0,8.493e-05,2]
[347706731,1736075441605,-500.0,8.493e-05,2]
[347706734,1736075441614,-500.0,8.493e-05,2]
[347706736,1736075441624,-500.0,8.493e-05,2]
[347706738,1736075441633,-500.0,8.493e-05,2]
[347706739,1736075441643,-500.0,8.493e-05,2]
[347706741,1736075441654,-500.0,8.493e-05,2]
[347706744,1736075441664,-500.0,8.493e-05,2]
[347706745,1736075441673,-1917.72,8.493e-05,2]
[347706748,1736075441683,-306.20486098,8.493e-05,2]
[347706749,1736075441693,-500.0,8.493e-05,2]
[347706751,1736075441702,-500.0,8.493e-05,2]
[347706753,1736075441711,-500.0,8.493e-05,2]
[347706755,1736075441721,-500.0,8.493e-05,2]
[347706758,1736075441731,-500.0,8.493e-05,2]
[347706760,1736075441740,-500.0,8.493e-05,2]
[347706762,1736075441749,-500.0,8.493e-05,2]
[347706763,1736075441759,-624.98,8.493e-05,2]
[347706766,1736075441769,-500.0,8.493e-05,2]
[347706767,1736075441778,-500.0,8.493e-05,2]
[347706769,1736075441787,-500.0,8.493e-05,2]
[347706771,1736075441797,-281.73739724,8.493e-05,2]
[347706773,1736075441806,-4992.43,8.493e-05,2]
[347706775,1736075441816,-500.0,8.493e-05,2]
[347706777,1736075441826,-500.0,8.493e-05,2]
[347706779,1736075441836,-500.0,8.493e-05,2]
[347706781,1736075441846,-619.97,8.493e-05,2]
[347706783,1736075441855,-1867.25,8.493e-05,2]
[347706785,1736075441864,-500.0,8.493e-05,2]
[347706787,1736075441874,-197.17,8.493e-05,7]
[347706789,1736075441883,-500.0,8.493e-05,2]
[347706791,1736075441892,-500.0,8.493e-05,2]
[347706793,1736075441902,-566.22,8.493e-05,2]
[347706795,1736075441912,-500.0,8.493e-05,2]
[347706797,1736075441925,-3407.9,8.493e-05,2]
[347706799,1736075441934,-669.06,8.493e-05,2]
[347706801,1736075441943,-500.0,8.493e-05,2]
[347706803,1736075441953,-991.4,8.493e-05,2]
[347706805,1736075441962,-527.4,8.493e-05,2]
[347706807,1736075441971,-707.71,8.493e-05,2]
[347706809,1736075441980,-500.0,8.493e-05,2]
[347706811,1736075441989,-500.0,8.493e-05,2]
[347706813,1736075441999,-500.0,8.493e-05,2]
[347706815,1736075442007,-500.0,8.493e-05,2]
[347706817,1736075442016,-500.0,8.493e-05,2]
[347706819,1736075442025,-500.0,8.493e-05,2]
[347706821,1736075442035,-500.0,8.493e-05,2]
[347706823,1736075442044,-1097.39,8.493e-05,2]
[347706825,1736075442054,-1339.42,8.493e-05,2]
[347706827,1736075442063,-500.0,8.493e-05,2]
[347706829,1736075442072,-500.0,8.493e-05,2]
[347706831,1736075442082,-500.0,8.493e-05,2]
[347706833,1736075442092,-728.32,8.493e-05,2]
[347706835,1736075442102,-610.9,8.493e-05,2]
[347706837,1736075442111,-500.0,8.493e-05,2]
[347706839,1736075442121,-500.0,8.493e-05,2]
[347706841,1736075442130,-533.84,8.493e-05,2]
[347706843,1736075442140,-1600.65,8.493e-05,2]
[347706845,1736075442149,-722.02,8.493e-05,2]
[347706847,1736075442158,-500.0,8.493e-05,2]
[347706849,1736075442168,-519.0507689,8.493e-05,2]
[347706851,1736075442179,-500.0,8.493e-05,2]
[347706853,1736075442188,-795.19,8.493e-05,2]
[347706855,1736075442197,-500.0,8.493e-05,2]
[347706857,1736075442207,-500.0,8.493e-05,2]
[347706859,1736075442216,-500.0,8.493e-05,2]
[347706861,1736075442225,-500.0,8.493e-05,2]
[347706863,1736075442235,-605.34,8.493e-05,2]
[347706865,1736075442244,-500.0,8.493e-05,2]
[347706867,1736075442254,-500.0,8.493e-05,2]
[347706869,1736075442263,-500.0,8.493e-05,2]
[347706870,1736075442273,-918.04,8.493e-05,2]
[347706873,1736075442282,-500.0,8.493e-05,2]
[347706874,1736075442292,-1504.03,8.493e-05,2]
[347706876,1736075442301,-500.0,8.493e-05,2]
[347706878,1736075442310,-500.0,8.493e-05,2]
[347706880,1736075442319,-500.0,8.493e-05,2]
[347706882,1736075442329,-1154.76,8.493e-05,2]
[347706884,1736075442339,-1207.05,8.493e-05,2]
[347706886,1736075442348,-500.0,8.493e-05,2]
[347706888,1736075442358,-500.0,8.493e-05,2]
[347706890,1736075442367,-500.0,8.493e-05,2]
[347706892,1736075442377,-1386.8,8.493e-05,2]
[347706894,1736075442386,-500.0,8.493e-05,2]
[347706896,1736075442396,-563.48,8.493e-05,2]
[347706898,1736075442405,-500.0,8.493e-05,2]
[347706900,1736075442415,-500.0,8.493e-05,2]
[347706902,1736075442424,-500.0,8.493e-05,2]
[347706904,1736075442434,-572.28,8.493e-05,2]
[347706906,1736075442443,-500.0,8.493e-05,2]
[347706908,1736075442453,-500.0,8.493e-05,2]
[347706910,1736075442462,-500.0,8.493e-05,2]
[347706912,1736075442472,-500.0,8.493e-05,2]
[347706914,1736075442481,-500.0,8.493e-05,2]
[347706916,1736075442491,-500.0,8.493e-05,2]
[347706918,1736075442500,-810.22,8.493e-05,2]
[347706920,1736075442510,-500.0,8.493e-05,2]
[347706923,1736075442519,-500.0,8.493e-05,2]
[347706925,1736075442529,-500.0,8.493e-05,2]
[347706927,1736075442538,-500.0,8.493e-05,2]
[347706929,1736075442547,-500.0,8.493e-05,2]
[347706931,1736075442557,-712.35,8.493e-05,2]
[347706933,1736075442566,-1267.83,8.493e-05,2]
[347706935,1736075442576,-500.0,8.493e-05,2]
[347706937,1736075442585,-500.0,8.493e-05,2]
[347706939,1736075442595,-500.0,8.493e-05,2]
[347706941,1736075442604,-500.0,8.493e-05,2]
[347706943,1736075442613,-500.0,8.493e-05,2]
[347706945,1736075442623,-510.03,8.493e-05,2]
[347706947,1736075442632,-500.0,8.493e-05,2]
[347706949,1736075442641,-456.88853114,8.493e-05,2]
[347706951,1736075442650,-910.54,8.493e-05,2]
[347706953,1736075442659,-331.55,8.493e-05,2]
[347706955,1736075442669,-500.0,8.493e-05,2]
[347706957,1736075442678,-628.77862188,8.493e-05,2]
[347706959,1736075442688,-962.7,8.493e-05,2]
[347706961,1736075442697,-500.0,8.493e-05,2]
[347706963,1736075442707,-500.0,8.493e-05,2]
[347706966,1736075442717,-768.73,8.493e-05,2]
[347706969,1736075442726,-500.0,8.493e-05,2]
[347706972,1736075442735,-500.0,8.493e-05,2]
[347706974,1736075442744,-545.56,8.493e-05,2]
[347706976,1736075442754,-500.0,8.493e-05,2]
[347706978,1736075442763,-500.0,8.493e-05,2]
[347706980,1736075442772,-187.38580831,8.493e-05,2]
[347706982,1736075442781,-500.0,8.493e-05,2]
[347706983,1736075442791,-500.0,8.493e-05,2]
[347706987,1736075442800,-1678.9,8.493e-05,2]
[347706988,1736075442809,-500.0,8.493e-05,2]
[347706990,1736075442818,-500.0,8.493e-05,2]
[347706992,1736075442828,-549.03,8.493e-05,2]
[347706995,1736075442838,-1053.9,8.493e-05,2]
[347706997,1736075442847,-1350.28,8.493e-05,2]
[347706998,1736075442857,-500.0,8.493e-05,2]
[347706999,1736075442866,-500.0,8.493e-05,2]
[347707000,1736075442876,-500.0,8.493e-05,2]
[347707001,1736075442885,-500.0,8.493e-05,2]
[347707002,1736075442895,-458.23473197,8.493e-05,2]
[347707151,1736075444406,-500.0,8.219e-05,2]
[347707153,1736075444415,-534.68,8.219e-05,2]
[347707155,1736075444424,-623.59526803,8.493e-05,2]
[347707157,1736075444434,-500.0,8.493e-05,2]
[347707159,1736075444443,-500.0,8.493e-05,2]
[347707161,1736075444453,-500.0,8.493e-05,2]